[Event "RUS-ch Women Blitz 2019"]
[Site "Sochi"]
[Date "2019.10.17"]
[Round "13.6"]
[White "Kovanova, Baira"]
[Black "Murashova, Ekaterina"]
[Result "0-1"]
[ECO "A06"]
[WhiteElo "2344"]
[BlackElo "2248"]
[Annotator "NA"]
[PlyCount "128"]
[EventDate "2019.10.17"]
[EventType "swiss"]
[EventCountry "RUS"]
[SourceTitle "playchess.com"]
[Source "ChessBase"]
[SourceQuality "1"]
[TimeControl "180+2"]

1. Nf3 {[%emt 0:00:00]} d5 {[%emt 0:00:00]} 2. g3 {[%emt 0:00:00]} Nf6 {[%emt 0:00:06]} 3. Bg2 {[%emt 0:00:01]} e6 {[%emt 0:00:03]} 4. O-O {[%emt 0:00:02]} c5 {[%emt 0:00:02]} 5. d3 {[%emt 0:00:02]} Nc6 {[%emt 0:00:09]} 6. Nbd2 {[%emt 0:00:01]} g6 {[%emt 0:00:13]} 7. e4 {[%emt 0:00:06]} Bg7 {[%emt 0:00:01]} 8. Qe2 {[%emt 0:00:02]} O-O {[%emt 0:00:10]} 9. Re1 {[%emt 0:00:11]} a5 {[%emt 0:00:03]} 10. Nf1 {[%emt 0:00:07]} b6 {[%emt 0:00:16]} 11. e5 {[%emt 0:00:25]} Nd7 {[%emt 0:00:03]} 12. Bf4 {[%emt 0:00:01]} Ba6 {[%emt 0:00:23]} 13. h4 {[%emt 0:00:06]} a4 {[%emt 0:00:02]} 14. a3 {[%emt 0:00:02]} b5 {[%emt 0:00:11]} 15. h5 {[%emt 0:00:33]} h6 {[%emt 0:00:31]} 16. g4 {[%emt 0:01:11]} g5 {[%emt 0:00:02]} 17. Bg3 {[%emt 0:00:01]} Qb6 {[%emt 0:00:20]} 18. N1d2 {[%emt 0:00:04]} b4 {[%emt 0:00:05]} 19. axb4 {[%emt 0:00:26]} Qxb4 {[%emt 0:00:01]} 20. Rab1 {[%emt 0:00:05]} Qxg4 {[%emt 0:00:01]} 21. c4 {[%emt 0:00:05]} Nb4 {[%emt 0:00:18]} 22. Ra1 {[%emt 0:00:04]} Qf5 {[%emt 0:00:03]} 23. Rxa4 {[%emt 0:00:02]} Nxd3 {[%emt 0:00:11]} 24. Rd1 {[%emt 0:00:02]} Nxb2 {[%emt 0:00:02]} 25. Rxa6 {[%emt 0:00:01]} Rxa6 {[%emt 0:00:02]} 26. Rb1 {[%emt 0:00:02]} Nxc4 {[%emt 0:00:03]} 27. Rc1 {[%emt 0:00:01]} Ra2 {[%emt 0:00:08]} 28. Qe1 {[%emt 0:00:03]} Nxd2 {[%emt 0:00:03]} 29. Nxd2 {[%emt 0:00:01]} c4 {[%emt 0:00:03]} 30. Nb1 {[%emt 0:00:02]} Rc2 {[%emt 0:00:05]} 31. Rd1 {[%emt 0:00:01]} Rb8 {[%emt 0:00:07]} 32. Na3 {[%emt 0:00:01]} Ra2 {[%emt 0:00:01]} 33. Nxc4 {[%emt 0:00:01]} dxc4 {[%emt 0:00:05]} 34. Rxd7 {[%emt 0:00:01]} Rb1 {[%emt 0:00:02]} 35. Rd8+ {[%emt 0:00:03]} Kh7 {[%emt 0:00:01]} 36. Rd1 {[%emt 0:00:00]} Rxd1 {[%emt 0:00:01]} 37. Qxd1 {[%emt 0:00:01]} Rb2 {[%emt 0:00:02]} 38. Qd4 {[%emt 0:00:03]} Re2 {[%emt 0:00:11]} 39. Bf1 {[%emt 0:00:02]} Re4 {[%emt 0:00:01]} 40. Qd1 {[%emt 0:00:01]} c3 {[%emt 0:00:01]} 41. Bd3 {[%emt 0:00:01]} Bxe5 {[%emt 0:00:01]} 42. Qc2 {[%emt 0:00:01]} Qg4 {[%emt 0:00:04]} 43. Bxe4+ f5 44. Bg2 {[%emt 0:00:03]} Bxg3 {[%emt 0:00:01]} 45. fxg3 {[%emt 0:00:01]} Qxg3 {[%emt 0:00:00]} 46. Qe2 {[%emt 0:00:01]} Qd6 {[%emt 0:00:02]} 47. Qc2 {[%emt 0:00:02]} Qd4+ {[%emt 0:00:01]} 48. Kf1 {[%emt 0:00:01]} Qd2 {[%emt 0:00:02]} 49. Qb3 {[%emt 0:00:01]} Qc1+ {[%emt 0:00:01]} 50. Ke2 {[%emt 0:00:01]} Qd2+ {[%emt 0:00:01]} 51. Kf1 {[%emt 0:00:01]} Qd3+ {[%emt 0:00:00]} 52. Kg1 {[%emt 0:00:01]} Qd4+ {[%emt 0:00:01]} 53. Kf1 {[%emt 0:00:01]} Qd3+ {[%emt 0:00:01]} 54. Kg1 {[%emt 0:00:01]} Qe3+ 55. Kf1 Kg7 {[%emt 0:00:02]} 56. Qb7+ {[%emt 0:00:02]} Kf6 {[%emt 0:00:01]} 57. Qc8 {[%emt 0:00:01]} Ke5 {[%emt 0:00:01]} 58. Qc7+ {[%emt 0:00:02]} Kf6 {[%emt 0:00:03]} 59. Qd8+ {[%emt 0:00:01]} Ke5 {[%emt 0:00:01]} 60. Qc7+ {[%emt 0:00:01]} Kd4 {[%emt 0:00:03]} 61. Qb6+ {[%emt 0:00:00]} Kd3 {[%emt 0:00:01]} 62. Qb5+ {[%emt 0:00:02]} Kd2 {[%emt 0:00:01]} 63. Qd7+ {[%emt 0:00:04]} Qd3+ {[%emt 0:00:01]} 64. Qxd3+ {[%emt 0:00:02]} Kxd3 {[%emt 0:00:00]} 0-1

[Event "RUS-ch Women Blitz 2019"]
[Site "Sochi"]
[Date "2019.10.17"]
[Round "13.7"]
[White "Yakimova, Mariya"]
[Black "Charochkina, Daria"]
[Result "0-1"]
[ECO "A41"]
[WhiteElo "2276"]
[BlackElo "2355"]
[Annotator "NA"]
[PlyCount "76"]
[EventDate "2019.10.17"]
[EventType "swiss"]
[EventCountry "RUS"]
[SourceTitle "playchess.com"]
[Source "ChessBase"]
[SourceQuality "1"]
[TimeControl "180+2"]

1. d4 {[%emt 0:00:00]} d6 {[%emt 0:00:00]} 2. Nf3 {[%emt 0:00:01]} Nf6 {[%emt 0:00:00]} 3. c4 {[%emt 0:00:01]} g6 {[%emt 0:00:01]} 4. g3 {[%emt 0:00:02]} Bf5 {[%emt 0:00:01]} 5. Bg2 {[%emt 0:00:02]} Bg7 {[%emt 0:00:01]} 6. O-O {[%emt 0:00:02]} O-O {[%emt 0:00:01]} 7. Nc3 {[%emt 0:00:01]} Ne4 {[%emt 0:00:10]} 8. Nh4 {[%emt 0:00:12]} Nxc3 {[%emt 0:00:01]} 9. bxc3 {[%emt 0:00:02]} Bc8 {[%emt 0:00:01]} 10. Rb1 {[%emt 0:00:01]} c6 {[%emt 0:00:01]} 11. e4 {[%emt 0:00:04]} Nd7 {[%emt 0:00:07]} 12. Be3 {[%emt 0:00:04]} Nb6 {[%emt 0:00:03]} 13. Qe2 {[%emt 0:00:07]} Be6 {[%emt 0:00:03]} 14. Rb4 {[%emt 0:00:07]} c5 {[%emt 0:00:31]} 15. dxc5 {[%emt 0:00:03]} dxc5 {[%emt 0:00:01]} 16. Bxc5 {[%emt 0:00:08]} Bxc3 {[%emt 0:00:01]} 17. Bxb6 {[%emt 0:00:14]} axb6 {[%emt 0:00:01]} 18. Rb3 {[%emt 0:00:01]} Bg7 {[%emt 0:00:01]} 19. Rfb1 {[%emt 0:00:12]} Ra6 {[%emt 0:00:01]} 20. Nf3 {[%emt 0:00:03]} Qc7 {[%emt 0:00:02]} 21. Nd2 {[%emt 0:00:10]} Rfa8 {[%emt 0:00:01]} 22. Qe3 {[%emt 0:00:08]} Rxa2 {[%emt 0:00:49]} 23. Rxb6 {[%emt 0:00:07]} Ra1 {[%emt 0:00:08]} 24. h4 {[%emt 0:00:11]} Bh6 {[%emt 0:00:11]} 25. Qd4 {[%emt 0:00:28]} Bxd2 {[%emt 0:00:20]} 26. Rxa1 {[%emt 0:00:54]} Rxa1+ {[%emt 0:00:01]} 27. Kh2 {[%emt 0:00:01]} Ra2 {[%emt 0:00:19]} 28. c5 {[%emt 0:00:13]} Ba5 {[%emt 0:00:10]} 29. Rb1 {[%emt 0:00:09]} Rd2 {[%emt 0:00:01]} 30. Qe3 {[%emt 0:00:03]} Rd8 {[%emt 0:00:17]} 31. e5 {[%emt 0:00:04]} Bd5 {[%emt 0:00:02]} 32. Bxd5 {[%emt 0:00:03]} Rxd5 {[%emt 0:00:01]} 33. Rb5 {[%emt 0:00:02]} Rxe5 {[%emt 0:00:19]} 34. Qa3 {[%emt 0:00:04]} Be1 {[%emt 0:00:02]} 35. Qa8+ {[%emt 0:00:01]} Kg7 {[%emt 0:00:01]} 36. Qa1 {[%emt 0:00:02]} f6 {[%emt 0:00:03]} 37. Rb1 {[%emt 0:00:03]} Bxf2 {[%emt 0:00:02]} 38. Rc1 {[%emt 0:00:02]} Bxc5 {[%emt 0:00:02]} 0-1

[Event "RUS-ch Women Blitz 2019"]
[Site "Sochi"]
[Date "2019.10.17"]
[Round "13.8"]
[White "Ambartsumova, Karina"]
[Black "Vifleemskaia, Svetlana"]
[Result "1/2-1/2"]
[ECO "A34"]
[WhiteElo "2341"]
[BlackElo "1978"]
[Annotator "NA"]
[PlyCount "146"]
[EventDate "2019.10.17"]
[EventType "swiss"]
[EventCountry "RUS"]
[SourceTitle "playchess.com"]
[Source "ChessBase"]
[SourceQuality "1"]
[TimeControl "180+2"]

1. c4 {[%emt 0:00:00]} c5 {[%emt 0:00:00]} 2. Nf3 {[%emt 0:00:02]} Nf6 {[%emt 0:00:01]} 3. Nc3 {[%emt 0:00:04]} d5 {[%emt 0:00:02]} 4. cxd5 {[%emt 0:00:03]} Nxd5 {[%emt 0:00:01]} 5. e3 {[%emt 0:00:01]} Nc6 {[%emt 0:00:03]} 6. Bb5 {[%emt 0:00:04]} Nxc3 {[%emt 0:00:28]} 7. bxc3 {[%emt 0:00:02]} Bd7 {[%emt 0:00:09]} 8. O-O {[%emt 0:00:11]} e6 {[%emt 0:00:01]} 9. d4 {[%emt 0:00:03]} a6 {[%emt 0:00:12]} 10. Bd3 {[%emt 0:00:07]} b5 {[%emt 0:00:26]} 11. e4 {[%emt 0:00:12]} cxd4 12. cxd4 {[%emt 0:00:01]} Nb4 {[%emt 0:00:47]} 13. Bb1 {[%emt 0:00:05]} Bd6 {[%emt 0:00:20]} 14. Be3 {[%emt 0:00:07]} O-O {[%emt 0:00:14]} 15. a3 {[%emt 0:00:01]} Nc6 {[%emt 0:00:03]} 16. Qd3 {[%emt 0:00:21]} e5 {[%emt 0:00:27]} 17. dxe5 {[%emt 0:00:19]} Bxe5 {[%emt 0:00:03]} 18. Nxe5 {[%emt 0:00:02]} Nxe5 {[%emt 0:00:01]} 19. Qd5 {[%emt 0:00:02]} Nc4 {[%emt 0:00:10]} 20. Bc5 {[%emt 0:00:28]} Re8 {[%emt 0:00:03]} 21. Rd1 {[%emt 0:00:03]} Be6 {[%emt 0:00:03]} 22. Qh5 {[%emt 0:00:05]} Qf6 {[%emt 0:00:02]} 23. Bd4 {[%emt 0:00:06]} Qg6 {[%emt 0:00:02]} 24. Qe2 {[%emt 0:00:19]} Bg4 {[%emt 0:00:04]} 25. f3 {[%emt 0:00:02]} Be6 {[%emt 0:00:03]} 26. Bc2 {[%emt 0:00:12]} Rad8 {[%emt 0:00:01]} 27. Bc5 {[%emt 0:00:22]} Qh5 {[%emt 0:00:02]} 28. Bf2 {[%emt 0:00:10]} h6 {[%emt 0:00:02]} 29. a4 {[%emt 0:00:09]} Qg5 {[%emt 0:00:03]} 30. axb5 {[%emt 0:00:03]} axb5 {[%emt 0:00:02]} 31. Rxd8 {[%emt 0:00:09]} Rxd8 {[%emt 0:00:00]} 32. Rd1 {[%emt 0:00:01]} Qe7 {[%emt 0:00:03]} 33. Rxd8+ Qxd8 {[%emt 0:00:01]} 34. h4 {[%emt 0:00:06]} Qd6 {[%emt 0:00:01]} 35. Be1 {[%emt 0:00:02]} Qd4+ {[%emt 0:00:03]} 36. Bf2 {[%emt 0:00:02]} Qc3 {[%emt 0:00:01]} 37. Qd3 {[%emt 0:00:02]} Qxd3 38. Bxd3 {[%emt 0:00:01]} b4 {[%emt 0:00:03]} 39. Bd4 {[%emt 0:00:04]} b3 {[%emt 0:00:01]} 40. Kf2 {[%emt 0:00:03]} Kf8 {[%emt 0:00:03]} 41. f4 {[%emt 0:00:00]} f6 {[%emt 0:00:01]} 42. Ke2 {[%emt 0:00:02]} Ke7 {[%emt 0:00:01]} 43. Kd1 {[%emt 0:00:00]} Kd6 {[%emt 0:00:01]} 44. Kc1 {[%emt 0:00:02]} Kc6 {[%emt 0:00:02]} 45. g3 {[%emt 0:00:02]} Kb5 {[%emt 0:00:01]} 46. Bc3 {[%emt 0:00:01]} Kc5 {[%emt 0:00:01]} 47. h5 {[%emt 0:00:02]} Bg4 {[%emt 0:00:02]} 48. e5 {[%emt 0:00:01]} Bxh5 {[%emt 0:00:03]} 49. exf6 {[%emt 0:00:01]} gxf6 {[%emt 0:00:00]} 50. Bxf6 {[%emt 0:00:01]} Bf7 {[%emt 0:00:04]} 51. g4 {[%emt 0:00:02]} Kb4 {[%emt 0:00:02]} 52. g5 {[%emt 0:00:02]} hxg5 {[%emt 0:00:01]} 53. fxg5 {[%emt 0:00:01]} Ka3 {[%emt 0:00:00]} 54. g6 {[%emt 0:00:03]} Bg8 {[%emt 0:00:01]} 55. Be7+ {[%emt 0:00:03]} Ka2 {[%emt 0:00:01]} 56. Bb1+ {[%emt 0:00:01]} Ka1 {[%emt 0:00:02]} 57. Bf6+ {[%emt 0:00:07]} b2+ {[%emt 0:00:01]} 58. Bxb2+ {[%emt 0:00:03]} Nxb2 {[%emt 0:00:01]} 59. Bf5 {[%emt 0:00:01]} Nc4 {[%emt 0:00:02]} 60. Be4 {[%emt 0:00:02]} Nd6 {[%emt 0:00:01]} 61. Bd3 {[%emt 0:00:02]} Ka2 {[%emt 0:00:01]} 62. Kc2 {[%emt 0:00:02]} Ka3 {[%emt 0:00:01]} 63. Kc3 {[%emt 0:00:00]} Ka4 {[%emt 0:00:01]} 64. Kd4 {[%emt 0:00:01]} Ne8 {[%emt 0:00:01]} 65. Ke5 {[%emt 0:00:02]} Kb4 {[%emt 0:00:01]} 66. Bf5 {[%emt 0:00:01]} Kc5 {[%emt 0:00:03]} 67. Bd7 {[%emt 0:00:01]} Ng7 {[%emt 0:00:02]} 68. Kf6 {[%emt 0:00:01]} Nh5+ {[%emt 0:00:01]} 69. Kg5 {[%emt 0:00:01]} Ng7 {[%emt 0:00:01]} 70. Kh6 {[%emt 0:00:02]} Ne6 {[%emt 0:00:02]} 71. Be8 {[%emt 0:00:03]} Kd6 {[%emt 0:00:02]} 72. Bf7 {[%emt 0:00:03]} Bxf7 {[%emt 0:00:01]} 73. gxf7 {[%emt 0:00:00]} Ke7 {[%emt 0:00:01]} 1/2-1/2

[Event "RUS-ch Women Blitz 2019"]
[Site "Sochi"]
[Date "2019.10.17"]
[Round "13.9"]
[White "Markelova, Lubov"]
[Black "Chernyak, Viktoria"]
[Result "0-1"]
[ECO "A05"]
[WhiteElo "2198"]
[BlackElo "2284"]
[Annotator "NA"]
[PlyCount "52"]
[EventDate "2019.10.17"]
[EventType "swiss"]
[EventCountry "RUS"]
[SourceTitle "playchess.com"]
[Source "ChessBase"]
[SourceQuality "1"]
[TimeControl "180+2"]

1. Nf3 {[%emt 0:00:00]} Nf6 {[%emt 0:00:01]} 2. c4 {[%emt 0:00:00]} e6 {[%emt 0:00:02]} 3. e3 {[%emt 0:00:06]} d5 {[%emt 0:00:01]} 4. d4 {[%emt 0:00:04]} Be7 {[%emt 0:00:04]} 5. b3 {[%emt 0:00:06]} O-O {[%emt 0:00:02]} 6. Bd3 {[%emt 0:00:01]} b6 {[%emt 0:00:04]} 7. Nc3 {[%emt 0:00:05]} Bb7 {[%emt 0:00:01]} 8. cxd5 {[%emt 0:00:02]} Nxd5 {[%emt 0:00:09]} 9. Nxd5 {[%emt 0:00:03]} Bxd5 {[%emt 0:00:11]} 10. O-O {[%emt 0:00:03]} Nd7 {[%emt 0:00:08]} 11. e4 {[%emt 0:00:07]} Bb7 {[%emt 0:00:01]} 12. Bb2 {[%emt 0:00:05]} Nf6 {[%emt 0:00:04]} 13. Qe2 {[%emt 0:00:04]} c5 {[%emt 0:00:04]} 14. Rfd1 {[%emt 0:00:08]} Qc7 {[%emt 0:00:22]} 15. Rac1 {[%emt 0:00:05]} Qf4 {[%emt 0:00:04]} 16. dxc5 {[%emt 0:01:10]} Bxc5 {[%emt 0:00:01]} 17. Be5 {[%emt 0:00:05]} Qh6 {[%emt 0:00:10]} 18. Bb1 {[%emt 0:00:20]} Rfd8 {[%emt 0:00:10]} 19. Bc7 {[%emt 0:00:06]} Rdc8 {[%emt 0:00:12]} 20. Be5 {[%emt 0:00:42]} Bxf2+ {[%emt 0:00:07]} 21. Kxf2 {[%emt 0:00:01]} Rxc1 {[%emt 0:00:01]} 22. Rxc1 {[%emt 0:00:01]} Qxc1 {[%emt 0:00:01]} 23. Bd3 {[%emt 0:00:06]} Ng4+ {[%emt 0:00:05]} 24. Kg3 {[%emt 0:00:03]} Nxe5 {[%emt 0:00:01]} 25. Nxe5 {[%emt 0:00:01]} Qg5+ {[%emt 0:00:04]} 26. Ng4 {[%emt 0:00:04]} h5 {[%emt 0:00:01]} 0-1

[Event "RUS-ch Women Blitz 2019"]
[Site "Sochi"]
[Date "2019.10.17"]
[Round "13.10"]
[White "Vasilevich, Tatjana"]
[Black "Styazhkina, Anna"]
[Result "1-0"]
[ECO "D11"]
[WhiteElo "2360"]
[BlackElo "2280"]
[Annotator "NA"]
[PlyCount "69"]
[EventDate "2019.10.17"]
[EventType "swiss"]
[EventCountry "RUS"]
[SourceTitle "playchess.com"]
[Source "ChessBase"]
[SourceQuality "1"]
[TimeControl "180+2"]

1. d4 {[%emt 0:00:00]} d5 {[%emt 0:00:00]} 2. c4 {[%emt 0:00:00]} c6 {[%emt 0:00:00]} 3. Nf3 {[%emt 0:00:01]} Nf6 {[%emt 0:00:01]} 4. e3 {[%emt 0:00:01]} a6 {[%emt 0:00:05]} 5. Nc3 {[%emt 0:00:09]} Bf5 {[%emt 0:00:04]} 6. Be2 {[%emt 0:00:07]} h6 {[%emt 0:00:02]} 7. O-O {[%emt 0:00:02]} e6 {[%emt 0:00:01]} 8. b3 {[%emt 0:00:03]} Bb4 {[%emt 0:00:15]} 9. Bb2 {[%emt 0:00:09]} O-O {[%emt 0:00:04]} 10. a3 {[%emt 0:00:12]} Bxc3 {[%emt 0:00:03]} 11. Bxc3 {[%emt 0:00:01]} Ne4 {[%emt 0:00:04]} 12. Bb2 {[%emt 0:00:07]} Nd7 {[%emt 0:00:04]} 13. Ne1 {[%emt 0:00:07]} Bg6 {[%emt 0:00:08]} 14. Nd3 {[%emt 0:00:10]} b5 {[%emt 0:00:42]} 15. c5 {[%emt 0:00:07]} e5 {[%emt 0:00:26]} 16. f3 {[%emt 0:00:02]} exd4 {[%emt 0:00:27]} 17. fxe4 {[%emt 0:00:32]} dxe4 {[%emt 0:00:01]} 18. Nf4 {[%emt 0:00:05]} d3 {[%emt 0:00:02]} 19. Bg4 {[%emt 0:00:12]} Nxc5 {[%emt 0:00:02]} 20. Rc1 {[%emt 0:00:11]} Qd6 {[%emt 0:00:03]} 21. Bd4 {[%emt 0:00:27]} Nb7 {[%emt 0:00:09]} 22. b4 {[%emt 0:00:02]} a5 {[%emt 0:00:04]} 23. Qb3 {[%emt 0:00:05]} axb4 {[%emt 0:00:20]} 24. axb4 {[%emt 0:00:02]} Ra4 {[%emt 0:00:04]} 25. Rb1 {[%emt 0:00:02]} Kh7 {[%emt 0:00:22]} 26. Qc3 {[%emt 0:00:15]} Rg8 {[%emt 0:00:07]} 27. Nxg6 {[%emt 0:00:07]} fxg6 {[%emt 0:00:03]} 28. Rf7 {[%emt 0:00:01]} Nd8 {[%emt 0:00:03]} 29. Rxg7+ {[%emt 0:00:05]} Rxg7 {[%emt 0:00:02]} 30. Bxg7 {[%emt 0:00:01]} d2 {[%emt 0:00:04]} 31. Bd4 {[%emt 0:00:05]} Ra2 {[%emt 0:00:04]} 32. Rd1 {[%emt 0:00:03]} Qb8 {[%emt 0:00:04]} 33. Rxd2 {[%emt 0:00:03]} Ra4 {[%emt 0:00:02]} 34. Bc5 {[%emt 0:00:03]} Nf7 {[%emt 0:00:03]} 35. Rd7 {[%emt 0:00:02]} 1-0

[Event "RUS-ch Women Blitz 2019"]
[Site "Sochi"]
[Date "2019.10.17"]
[Round "13.11"]
[White "Bivol, Alina"]
[Black "Fominykh, Maria"]
[Result "1/2-1/2"]
[ECO "A15"]
[WhiteElo "2371"]
[BlackElo "2206"]
[Annotator "NA"]
[PlyCount "68"]
[EventDate "2019.10.17"]
[EventType "swiss"]
[EventCountry "RUS"]
[SourceTitle "playchess.com"]
[Source "ChessBase"]
[SourceQuality "1"]
[TimeControl "180+2"]

1. c4 {[%emt 0:00:00]} Nf6 {[%emt 0:00:00]} 2. g3 {[%emt 0:00:01]} e5 {[%emt 0:00:03]} 3. Bg2 {[%emt 0:00:02]} Nc6 {[%emt 0:00:02]} 4. Nc3 {[%emt 0:00:06]} Bb4 {[%emt 0:00:02]} 5. e3 {[%emt 0:00:07]} Bxc3 {[%emt 0:00:04]} 6. bxc3 {[%emt 0:00:07]} d6 {[%emt 0:00:04]} 7. Ne2 {[%emt 0:00:05]} Be6 {[%emt 0:00:03]} 8. Qa4 {[%emt 0:00:05]} Qd7 {[%emt 0:00:06]} 9. d4 {[%emt 0:00:04]} Bg4 {[%emt 0:00:25]} 10. f3 {[%emt 0:00:10]} Bh5 {[%emt 0:00:23]} 11. O-O {[%emt 0:00:03]} O-O {[%emt 0:00:07]} 12. d5 {[%emt 0:00:07]} Nd8 {[%emt 0:00:19]} 13. Qxd7 {[%emt 0:00:04]} Nxd7 {[%emt 0:00:00]} 14. g4 {[%emt 0:00:11]} Bg6 15. e4 Nb6 {[%emt 0:00:21]} 16. c5 {[%emt 0:00:01]} dxc5 {[%emt 0:00:02]} 17. Ba3 {[%emt 0:00:02]} Nd7 {[%emt 0:00:10]} 18. c4 {[%emt 0:00:14]} b6 {[%emt 0:00:02]} 19. Nc3 {[%emt 0:00:05]} a6 {[%emt 0:00:06]} 20. Bb2 {[%emt 0:00:21]} Nb7 {[%emt 0:00:02]} 21. Rf2 {[%emt 0:00:40]} Nd6 {[%emt 0:00:03]} 22. Bf1 {[%emt 0:00:01]} f6 {[%emt 0:00:07]} 23. a4 {[%emt 0:00:02]} h5 {[%emt 0:00:16]} 24. h3 {[%emt 0:00:02]} Kf7 {[%emt 0:00:05]} 25. Bd3 {[%emt 0:00:03]} Rh8 {[%emt 0:00:04]} 26. Kg2 {[%emt 0:00:07]} Ke7 {[%emt 0:00:05]} 27. Ne2 {[%emt 0:00:18]} h4 {[%emt 0:00:12]} 28. Nc3 {[%emt 0:00:04]} Bf7 {[%emt 0:00:05]} 29. Bc1 {[%emt 0:00:04]} g5 {[%emt 0:00:11]} 30. Rb2 {[%emt 0:00:04]} a5 {[%emt 0:00:10]} 31. Be3 {[%emt 0:00:08]} Nb8 {[%emt 0:00:03]} 32. Nb5 {[%emt 0:00:12]} Nxb5 {[%emt 0:00:08]} 33. cxb5 {[%emt 0:00:02]} Kd6 {[%emt 0:00:02]} 34. Bc4 {[%emt 0:00:01]} Nd7 {[%emt 0:00:01]} 1/2-1/2

[Event "RUS-ch Women Blitz 2019"]
[Site "Sochi"]
[Date "2019.10.17"]
[Round "13.12"]
[White "Filippova, Darya"]
[Black "Lysenko, Margarita"]
[Result "0-1"]
[ECO "A22"]
[WhiteElo "2010"]
[BlackElo "2243"]
[Annotator "NA"]
[PlyCount "54"]
[EventDate "2019.10.17"]
[EventType "swiss"]
[EventCountry "RUS"]
[SourceTitle "playchess.com"]
[Source "ChessBase"]
[SourceQuality "1"]
[TimeControl "180+2"]

1. c4 {[%emt 0:00:00]} e5 {[%emt 0:00:00]} 2. Nc3 {[%emt 0:00:02]} Nf6 {[%emt 0:00:00]} 3. g3 {[%emt 0:00:02]} d5 {[%emt 0:00:01]} 4. cxd5 {[%emt 0:00:03]} Nxd5 {[%emt 0:00:01]} 5. Bg2 {[%emt 0:00:01]} Nb6 {[%emt 0:00:01]} 6. Nf3 {[%emt 0:00:06]} Nc6 {[%emt 0:00:01]} 7. O-O {[%emt 0:00:04]} Be7 {[%emt 0:00:02]} 8. Rb1 {[%emt 0:00:02]} a5 {[%emt 0:00:22]} 9. d3 {[%emt 0:00:02]} O-O {[%emt 0:00:07]} 10. Be3 {[%emt 0:00:04]} Re8 {[%emt 0:00:11]} 11. Nd2 {[%emt 0:00:11]} Nd4 {[%emt 0:00:09]} 12. Rc1 {[%emt 0:00:23]} c6 {[%emt 0:00:08]} 13. Nce4 {[%emt 0:00:10]} Nd5 {[%emt 0:00:12]} 14. Nc5 {[%emt 0:00:06]} Nxe3 {[%emt 0:00:22]} 15. fxe3 {[%emt 0:00:02]} Bxc5 {[%emt 0:00:33]} 16. Rxc5 {[%emt 0:00:07]} Nf5 {[%emt 0:00:07]} 17. Qb3 {[%emt 0:00:13]} Be6 {[%emt 0:00:26]} 18. Qxb7 {[%emt 0:00:06]} Nxe3 {[%emt 0:00:04]} 19. Bxc6 {[%emt 0:00:39]} Rb8 {[%emt 0:00:06]} 20. Qa7 {[%emt 0:00:17]} Nxf1 {[%emt 0:00:03]} 21. Nxf1 {[%emt 0:00:15]} Rf8 {[%emt 0:00:05]} 22. b3 {[%emt 0:00:05]} Rb6 {[%emt 0:00:09]} 23. Qxa5 {[%emt 0:00:10]} Qb8 {[%emt 0:00:17]} 24. Qc3 {[%emt 0:00:05]} Qd6 {[%emt 0:00:07]} 25. Ne3 {[%emt 0:00:06]} Rc8 {[%emt 0:00:06]} 26. b4 {[%emt 0:00:12]} Rbxc6 {[%emt 0:00:02]} 27. Rxc6 {[%emt 0:00:04]} Qxc6 {[%emt 0:00:01]} 0-1